fUSD/lending_fUSD_20241203
["ID","MTS","AMOUNT","RATE_DAILY","PERIOD"]
[344036043,1733237446345,-3458.33247315,7.7e-05,2]
[344036045,1733237446356,-7141.25947307,7.7e-05,2]
[344036046,1733237446369,-14482.63054788,7.7e-05,2]
[344036047,1733237446380,-2922.21887979,7.7e-05,2]
[344036048,1733237446392,-16371.61356966,7.7e-05,2]
[344036049,1733237446403,-21100.0,7.7e-05,2]
[344036050,1733237446414,-870.35,7.7e-05,2]
[344036051,1733237446432,-86787.6237577,7.7e-05,2]
[344036052,1733237446443,-4216.74907799,7.7e-05,2]
[344036053,1733237446454,-6630.53556159,7.7e-05,2]
[344036054,1733237446464,-586.88204057,7.7e-05,2]
[344036055,1733237446475,-18767.8,7.7e-05,2]
[344036056,1733237446486,-625.61037905,7.7e-05,2]
[344036057,1733237446524,-573646.24908151,7.7e-05,2]
[344036058,1733237446535,-2509.27900895,7.7e-05,2]
[344036059,1733237446546,-15460.28804493,7.7e-05,2]
[344036060,1733237446557,-3188.50851956,7.7e-05,2]
[344036061,1733237446568,-5589.08696478,7.7e-05,2]
[344036062,1733237446579,-6944.07424953,7.7e-05,2]
[344036063,1733237446600,-7565.95,7.7e-05,2]
[344036064,1733237446611,-7995.55133199,7.7e-05,2]
[344036065,1733237446623,-9153.42649974,7.7e-05,2]
[344036066,1733237446634,-362.19880891,7.7e-05,2]
[344036067,1733237446645,-15700.69709233,7.7e-05,2]
[344036068,1733237446657,-18011.09273192,7.7e-05,2]
[344036069,1733237446669,-43283.71017579,7.7e-05,2]
[344036070,1733237446704,-3765.41226008,7.7e-05,2]
[344036071,1733237446719,-1765.21539648,7.7e-05,2]
[344036072,1733237446731,-7130.0,7.7e-05,2]
[344036082,1733237448673,-5052.3931057,7.7e-05,2]
[344036083,1733237448684,-1175.61359168,7.7e-05,2]
[344036084,1733237448695,-261.2199998,7.7e-05,2]
[344036085,1733237448707,-5866.0175,7.7e-05,2]
[344036086,1733237448718,-9428.21882664,7.7e-05,2]
[344036087,1733237448731,-1133.63256697,7.7e-05,2]
[344036088,1733237448773,-28238.158,7.7e-05,2]
[344036089,1733237448792,-475.6535,7.7e-05,2]
[344036090,1733237448804,-553.64642017,7.7e-05,2]
[344036091,1733237451238,200.0,7e-05,2]
[344036092,1733237453865,500.0,7.1e-05,2]
[344036093,1733237461723,150.0,7.04e-05,2]
[344036094,1733237461758,150.0,7.04e-05,2]
[344036095,1733237461781,150.0,7.04e-05,2]
[344036096,1733237461803,150.0,7.04e-05,2]
[344036097,1733237461825,150.0,7.04e-05,2]
[344036098,1733237461851,150.0,7.04e-05,2]
[344036099,1733237461875,150.0,7.04e-05,2]
[344036100,1733237461897,150.0,7.04e-05,2]
[344036101,1733237461924,150.0,7.04e-05,2]
[344036102,1733237461946,150.0,7.04e-05,2]
[344036103,1733237461969,38.11,7.04e-05,2]
[344036104,1733237484097,150.0,6.925e-05,2]
[344036105,1733237484120,100.0,6.925e-05,2]
[344036106,1733237504047,300.0,6.932e-05,2]
[344036107,1733237523310,166.66,7.14e-05,2]
[344036110,1733237625300,150.0,6.885e-05,2]
[344036111,1733237625323,100.0,6.885e-05,2]
[344036114,1733237674914,414.35,6.81e-05,2]
[344036116,1733237704285,23900.0,6.792e-05,2]
[344036117,1733237724008,1500.0,6.792e-05,2]
[344036118,1733237733288,50000.0,0.0001511,44]
[344036120,1733237743185,150.0,6.792e-05,2]
[344036121,1733237743207,7.93,6.792e-05,2]
[344036122,1733237848745,195.85,6.791e-05,2]
[344036124,1733237967376,150.0,6.775e-05,2]
[344036125,1733237967398,150.0,6.775e-05,2]
[344036126,1733237967422,150.0,6.775e-05,2]
[344036127,1733237967444,150.0,6.775e-05,2]
[344036128,1733237967465,150.0,6.775e-05,2]
[344036130,1733238003354,150.0,6.775e-05,2]
[344036131,1733238003582,150.0,6.775e-05,2]
[344036132,1733238003811,150.0,6.775e-05,2]
[344036133,1733238005363,150.0,6.775e-05,2]
[344036134,1733238005447,150.0,6.775e-05,2]
[344036135,1733238005517,150.0,6.775e-05,2]
[344036136,1733238005607,150.0,6.775e-05,2]
[344036137,1733238005845,150.0,6.775e-05,2]
[344036138,1733238005946,237.49,6.775e-05,2]
[344036139,1733238051437,-301.5413,0.0001485,30]
[344036140,1733238128243,1538.11,6.801e-05,2]
[344036141,1733238154261,200.0,6.801e-05,2]
[344036142,1733238213828,250.0,6.756e-05,2]
[344036143,1733238314960,150.0,6.929e-05,2]
[344036144,1733238322209,23900.0,6.822e-05,2]
[344036145,1733238331010,150.0,6.929e-05,2]
[344036147,1733238337165,150.0,6.929e-05,2]
[344036148,1733238360151,250.0,6.822e-05,2]
[344036149,1733238367828,-300.0,7.203e-05,2]
[344036150,1733238367852,-336.65132666,7.204e-05,2]
[344036151,1733238367880,-17285.0,7.204e-05,2]
[344036152,1733238367903,-489.48132354,7.3e-05,2]
[344036153,1733238367925,-2230.17080687,7.3e-05,2]
[344036154,1733238367950,-3343.097,7.35e-05,2]
[344036155,1733238367973,-404.0447,7.4e-05,2]
[344036156,1733238367995,-489.48132353,7.4e-05,2]
[344036157,1733238368018,-168.879303,7.473e-05,2]
[344036158,1733238368040,-150.0,7.499e-05,2]
[344036159,1733238368062,-298000.0,7.5e-05,2]
[344036160,1733238368084,-245000.0,7.5e-05,2]
[344036161,1733238368107,-208.0847,7.5e-05,2]
[344036162,1733238368136,-185.86210675,7.5e-05,2]
[344036163,1733238368158,-26462.511,7.5e-05,2]
[344036164,1733238368181,-489.48132353,7.5e-05,2]
[344036165,1733238368203,-257.3182453,7.545e-05,2]
[344036166,1733238368226,-2500.0,7.6e-05,2]
[344036167,1733238368249,-5962.0,7.608e-05,2]
[344036168,1733238368271,-1261.0,7.608e-05,2]
[344036169,1733238368293,-150.0,7.608e-05,2]
[344036170,1733238368316,-566.0,7.608e-05,2]
[344036171,1733238368340,-150.0,7.608e-05,2]
[344036172,1733238368366,-630.0,7.608e-05,2]
[344036173,1733238368390,-2003.0,7.608e-05,2]
[344036174,1733238368414,-1893.0,7.608e-05,2]
[344036175,1733238368438,-563.0,7.608e-05,2]
[344036176,1733238368460,-3760.0,7.608e-05,2]
[344036177,1733238368485,-1252.0,7.608e-05,2]
[344036178,1733238368507,-816.0,7.608e-05,2]
[344036179,1733238368530,-3528.0,7.608e-05,2]
[344036180,1733238368553,-535.0,7.608e-05,2]
[344036181,1733238368576,-975.0,7.608e-05,2]
[344036182,1733238368600,-1165.0,7.61e-05,2]
[344036183,1733238368627,-13709.0,7.61e-05,2]
[344036184,1733238368650,-1097.0,7.61e-05,2]
[344036185,1733238368676,-414.35,7.661e-05,2]
[344036186,1733238368698,-974.0,7.671e-05,2]
[344036187,1733238368720,-159.77596334,7.673e-05,2]
[344036188,1733238368741,-389.61784249,7.673e-05,2]
[344036189,1733238368763,-500.0,7.673e-05,2]
[344036190,1733238368786,-203.50819277,7.673e-05,2]
[344036191,1733238368809,-372.04475441,7.673e-05,2]
[344036192,1733238368831,-500.0,7.673e-05,2]
[344036193,1733238368854,-200.0,7.678e-05,2]
[344036194,1733238368879,-200.0,7.679e-05,2]
[344036195,1733238368901,-200.0,7.679e-05,2]
[344036196,1733238368924,-200.0,7.679e-05,2]
[344036197,1733238369073,-6797.6254535,7.681e-05,2]
[344036198,1733238369096,-4661.94863249,7.682e-05,2]
[344036199,1733238369123,-6797.6254535,7.682e-05,2]
[344036200,1733238369146,-4661.94863249,7.682e-05,2]
[344036201,1733238369169,-6797.6254535,7.683e-05,2]
[344036202,1733238369191,-6797.6254535,7.683e-05,2]
[344036203,1733238369214,-6797.6254535,7.683e-05,2]
[344036204,1733238369236,-4661.94863249,7.685e-05,2]
[344036205,1733238369258,-4661.94863249,7.691e-05,2]
[344036206,1733238369280,-4661.94863249,7.693e-05,2]
[344036207,1733238369302,-200.0,7.693e-05,2]
[344036208,1733238369330,-6797.6254535,7.698e-05,2]
[344036209,1733238369352,-150.62073721,7.699e-05,2]
[344036210,1733238369379,-150.0,7.699e-05,2]
[344036211,1733238369402,-157.47897566,7.699e-05,2]
[344036212,1733238369426,-7013.197533,7.699e-05,2]
[344036213,1733238369450,-607.74258148,7.699e-05,2]
[344036214,1733238369472,-1063.08168324,7.699e-05,2]
[344036215,1733238369496,-1063.08168324,7.699e-05,2]
[344036216,1733238369520,-1063.08168324,7.699e-05,2]
[344036217,1733238369544,-1063.08168324,7.699e-05,2]
[344036218,1733238369568,-1063.08168324,7.699e-05,2]
[344036219,1733238369592,-1063.08168326,7.699e-05,2]
[344036220,1733238369618,-30000.0,7.7e-05,2]
[344036221,1733238369644,-686.0,7.7e-05,2]
[344036222,1733238369667,-4661.94863249,7.7e-05,2]
[344036223,1733238369697,-83113270.66564506,7.7e-05,2]
[344036225,1733238445382,185.87,6.948e-05,2]
[344036226,1733238448986,-200.0,7.2e-05,2]
[344036227,1733238449011,-157.93,7.247e-05,2]
[344036228,1733238449035,-500.0,7.3e-05,2]
[344036229,1733238449057,-208.0847,7.4e-05,2]
[344036230,1733238449081,-245000.0,7.4e-05,2]
[344036231,1733238449601,-800.0,7.4e-05,2]
[344036232,1733238449626,-168.879303,7.473e-05,2]
[344036233,1733238449651,-1100.0,7.5e-05,2]
[344036234,1733238449674,-257.3182453,7.545e-05,2]
[344036235,1733238449703,-2500.0,7.6e-05,2]
[344036236,1733238449727,-1400.0,7.6e-05,2]
[344036237,1733238449751,-974.0,7.671e-05,2]
[344036238,1733238449774,-389.61784249,7.673e-05,2]
[344036239,1733238449796,-203.50819277,7.673e-05,2]
[344036240,1733238449819,-159.77596334,7.673e-05,2]
[344036241,1733238449842,-500.0,7.673e-05,2]
[344036242,1733238449867,-1165.48715805,7.677e-05,2]
[344036243,1733238449891,-1699.4063633,7.679e-05,2]
[344036244,1733238449914,-1165.48715805,7.686e-05,2]
[344036245,1733238449942,-1699.4063633,7.688e-05,2]
[344036246,1733238449966,-1165.48715805,7.688e-05,2]
[344036247,1733238449990,-1699.4063633,7.691e-05,2]
[344036248,1733238450014,-1165.48715805,7.694e-05,2]
[344036249,1733238450038,-1699.4063633,7.694e-05,2]
[344036250,1733238450063,-1699.4063633,7.695e-05,2]
[344036251,1733238450088,-1165.48715805,7.697e-05,2]
[344036252,1733238450113,-1699.4063633,7.697e-05,2]
[344036253,1733238450137,-1165.48715805,7.699e-05,2]
[344036254,1733238450159,-2230.17080687,7.699e-05,2]
[344036255,1733238450188,-607.74258148,7.699e-05,2]
[344036256,1733238450212,-1063.08168324,7.699e-05,2]
[344036257,1733238450236,-1063.08168324,7.699e-05,2]
[344036258,1733238450263,-1063.08168324,7.699e-05,2]
[344036259,1733238450286,-1063.08168324,7.699e-05,2]
[344036260,1733238450310,-1063.08168324,7.699e-05,2]
[344036261,1733238450333,-1063.08168326,7.699e-05,2]
[344036262,1733238450356,-157.47897566,7.699e-05,2]
[344036263,1733238450383,-7013.197533,7.699e-05,2]
[344036264,1733238450407,-535.0,7.7e-05,2]
[344036265,1733238450440,-9711369.44462853,7.7e-05,2]
[344036399,1733238631733,-1500.0,7.178e-05,2]
[344036400,1733238631742,-6835.52381884,7.3e-05,2]
[344036401,1733238631754,-36150.0,7.3e-05,2]
[344036402,1733238631765,-150600.0,7.3e-05,2]
[344036403,1733238631776,-11480.16,7.3e-05,2]
[344036404,1733238631788,-550.0,7.3e-05,2]
[344036405,1733238631914,-404.41942219,7.3e-05,2]
[344036406,1733238632017,-1391.89049677,7.3e-05,2]
[344036407,1733238632029,-37588.0062622,7.3e-05,2]
[344036408,1733238632039,-336.65132666,7.3e-05,2]
[344036409,1733238632049,-4433.61672434,7.3e-05,2]
[344036410,1733238632059,-17285.0,7.323e-05,2]
[344036411,1733238632069,-150.0,7.399e-05,2]
[344036412,1733238632080,-21806.72549353,7.4e-05,2]
[344036431,1733238637657,-191085.15468638,7.4e-05,2]
[344036432,1733238637670,-1547.76562189,7.4e-05,2]
[344036433,1733238637682,-13552.91709489,7.4e-05,2]
[344036434,1733238637804,-70007.43710331,7.4e-05,2]
[344036435,1733238637815,-1468.4439706,7.4e-05,2]
[344036436,1733238637825,-684.4796,7.6e-05,2]
[344036437,1733238637835,-404.0447,7.6e-05,2]
[344036438,1733238637844,-2500.0,7.6e-05,2]
[344036439,1733238637854,-500.0,7.673e-05,2]
[344036440,1733238637864,-150.0,7.699e-05,2]
[344036441,1733238637875,-15099.18055323,7.7e-05,2]
[344036442,1733238637887,-15977072.16349888,7.7e-05,2]
[344036443,1733238637897,-150.0,7.7e-05,2]
[344036444,1733238637907,-150.0,7.7e-05,2]
[344036445,1733238637918,-204.0,7.7e-05,2]
[344036446,1733238637928,-204.0,7.7e-05,2]
[344036447,1733238637937,-204.0,7.7e-05,2]
[344036448,1733238637947,-204.0,7.7e-05,2]
[344036449,1733238637957,-204.0,7.7e-05,2]
[344036450,1733238637967,-625.0,7.7e-05,2]
[344036451,1733238637977,-204.0,7.7e-05,2]
[344036452,1733238637987,-204.0,7.7e-05,2]
[344036453,1733238637998,-204.0,7.7e-05,2]
[344036454,1733238638008,-625.0,7.7e-05,2]
[344036455,1733238638019,-204.0,7.7e-05,2]
[344036456,1733238638030,-625.0,7.7e-05,2]
[344036457,1733238638040,-204.0,7.7e-05,2]
[344036458,1733238638052,-625.0,7.7e-05,2]
[344036459,1733238638065,-625.0,7.7e-05,2]
[344036460,1733238638077,-625.0,7.7e-05,2]
[344036461,1733238638089,-625.0,7.7e-05,2]
[344036462,1733238638107,-625.0,7.7e-05,2]
[344036463,1733238638129,-625.0,7.7e-05,2]
[344036464,1733238638139,-625.0,7.7e-05,2]
[344036465,1733238638149,-625.0,7.7e-05,2]
[344036466,1733238638160,-201.0,7.7e-05,2]
[344036467,1733238638171,-625.0,7.7e-05,2]
[344036468,1733238638181,-625.0,7.7e-05,2]
[344036469,1733238638191,-625.0,7.7e-05,2]
[344036470,1733238638202,-201.0,7.7e-05,2]
[344036471,1733238638212,-625.0,7.7e-05,2]
[344036472,1733238638221,-201.0,7.7e-05,2]
[344036473,1733238638231,-625.0,7.7e-05,2]
[344036474,1733238638241,-201.0,7.7e-05,2]
[344036475,1733238638251,-625.0,7.7e-05,2]
[344036476,1733238638260,-201.0,7.7e-05,2]
[344036477,1733238638270,-625.0,7.7e-05,2]
[344036478,1733238638280,-201.0,7.7e-05,2]
[344036479,1733238638289,-625.0,7.7e-05,2]
[344036480,1733238638299,-201.0,7.7e-05,2]
[344036481,1733238638308,-625.0,7.7e-05,2]
[344036482,1733238638318,-201.0,7.7e-05,2]
[344036484,1733238638329,-201.0,7.7e-05,2]
[344036485,1733238638339,-201.0,7.7e-05,2]
[344036486,1733238638349,-201.0,7.7e-05,2]
[344036487,1733238638359,-201.0,7.7e-05,2]
[344036488,1733238638369,-223.0,7.7e-05,2]
[344036490,1733238638381,-223.0,7.7e-05,2]
[344036491,1733238638391,-223.0,7.7e-05,2]
[344036493,1733238638401,-223.0,7.7e-05,2]
[344036494,1733238638412,-223.0,7.7e-05,2]
[344036495,1733238638422,-223.0,7.7e-05,2]
[344036496,1733238638433,-223.0,7.7e-05,2]
[344036497,1733238638445,-223.0,7.7e-05,2]
[344036498,1733238638458,-223.0,7.7e-05,2]
[344036499,1733238638468,-223.0,7.7e-05,2]
[344036500,1733238638479,-223.0,7.7e-05,2]
[344036501,1733238638489,-223.0,7.7e-05,2]
[344036502,1733238638498,-223.0,7.7e-05,2]
[344036503,1733238638508,-223.0,7.7e-05,2]
[344036504,1733238638518,-223.0,7.7e-05,2]
[344036505,1733238638527,-223.0,7.7e-05,2]
[344036506,1733238638537,-223.0,7.7e-05,2]
[344036507,1733238638548,-223.0,7.7e-05,2]
[344036508,1733238638558,-223.0,7.7e-05,2]
[344036509,1733238638568,-223.0,7.7e-05,2]
[344036510,1733238638578,-2085.0,7.7e-05,2]
[344036511,1733238638588,-250.0,7.7e-05,2]
[344036512,1733238638600,-250.0,7.7e-05,2]
[344036513,1733238638610,-250.0,7.7e-05,2]
[344036514,1733238638619,-250.0,7.7e-05,2]
[344036515,1733238638635,-250.0,7.7e-05,2]
[344036516,1733238638646,-250.0,7.7e-05,2]
[344036517,1733238638657,-250.0,7.7e-05,2]
[344036518,1733238638667,-250.0,7.7e-05,2]
[344036519,1733238638676,-250.0,7.7e-05,2]
[344036520,1733238638687,-250.0,7.7e-05,2]
[344036521,1733238638696,-250.0,7.7e-05,2]
[344036522,1733238638706,-250.0,7.7e-05,2]
[344036523,1733238638716,-600.0,7.7e-05,2]
[344036524,1733238638726,-1577.35175232,7.7e-05,2]
[344036525,1733238638735,-1577.35175232,7.7e-05,2]
[344036526,1733238638744,-1577.35175232,7.7e-05,2]
[344036527,1733238638754,-200.0,7.7e-05,2]
[344036528,1733238638763,-150.0,7.7e-05,2]
[344036529,1733238638772,-150.0,7.7e-05,2]
[344036530,1733238638782,-150.0,7.7e-05,2]
[344036531,1733238638792,-541.72592377,7.7e-05,2]
[344036533,1733238638802,-436.79248601,7.7e-05,2]
[344036535,1733238638812,-21737.82156144,7.7e-05,2]
[344036537,1733238638822,-32235.1554841,7.7e-05,2]
[344036538,1733238638832,-227.32344439,7.7e-05,2]
[344036539,1733238638842,-1165.0,7.7e-05,2]
[344036540,1733238638851,-5962.0,7.7e-05,2]
[344036541,1733238638861,-150.0,7.7e-05,2]
[344036542,1733238638871,-13709.0,7.7e-05,2]
[344036543,1733238638886,-6845.4201314,7.702e-05,2]
[344036544,1733238638896,-5352.0,7.702e-05,2]
[344036545,1733238638905,-20000.000001,7.8e-05,2]
[344036546,1733238638915,-25000.0,7.8e-05,2]
[344036547,1733238638924,-200.0,7.8e-05,2]
[344036548,1733238638934,-185.87,7.817e-05,2]
[344036549,1733238638944,-167.94881,7.846e-05,2]
[344036550,1733238638953,-373.35395848,7.888e-05,2]
[344036551,1733238638964,-25000.0,7.9e-05,2]
[344036552,1733238638973,-2000.0,7.9e-05,2]
[344036553,1733238638983,-2000.0,7.9e-05,2]
[344036554,1733238638994,-2000.0,7.9e-05,2]
[344036555,1733238639004,-200.0,7.9e-05,2]
[344036556,1733238639014,-2000.0,7.9e-05,2]
[344036557,1733238639023,-5616.919957,7.945e-05,2]
[344036558,1733238639032,-961.0,7.945e-05,2]
[344036559,1733238639042,-1055.0,7.976e-05,2]
[344036560,1733238639051,-2000.0,7.999e-05,2]
[344036561,1733238639060,-2000.0,7.999e-05,2]
[344036562,1733238639070,-700.14066894,8e-05,2]
[344036563,1733238639079,-300.0,8e-05,2]
[344036564,1733238639089,-20000.0,8e-05,2]
[344036565,1733238639099,-25000.0,8e-05,2]
[344036566,1733238639111,-200.0,8e-05,2]
[344036567,1733238639121,-420.41142783,8.053e-05,2]
[344036568,1733238639134,-500.0,8.082e-05,2]
[344036569,1733238639145,-218.0,8.082e-05,2]
[344036570,1733238639155,-2000.0,8.1e-05,2]
[344036571,1733238639165,-25000.0,8.1e-05,2]
[344036572,1733238639174,-255.0,8.139e-05,2]
[344036573,1733238639184,-727.62,8.175e-05,2]
[344036574,1733238639195,-683.322523,8.178e-05,2]
[344036575,1733238639205,-162.02313196,8.18e-05,2]
[344036576,1733238639216,-25000.0,8.2e-05,2]
[344036577,1733238639226,-500.0,8.219e-05,2]
[344036578,1733238639236,-161.59031012,8.219e-05,2]
[344036579,1733238639246,-150.0,8.219e-05,2]
[344036580,1733238639257,-150.0,8.219e-05,2]
[344036581,1733238639267,-500.0,8.219e-05,2]
[344036582,1733238639278,-500.0,8.219e-05,2]
[344036583,1733238639288,-500.0,8.219e-05,2]
[344036584,1733238639298,-150.0,8.219e-05,2]
[344036585,1733238639308,-2076.0,8.219e-05,2]
[344036586,1733238639318,-243.85417445,8.219e-05,2]
[344036587,1733238639329,-500.0,8.219e-05,2]
[344036588,1733238639339,-222.83962486,8.219e-05,2]
[344036589,1733238639349,-161.94833037,8.219e-05,2]
[344036590,1733238639359,-48910.0,8.219e-05,2]
[344036591,1733238639369,-1001.54,8.219e-05,2]
[344036592,1733238639382,-1136.52,8.219e-05,2]
[344036593,1733238639392,-30694.0,8.219e-05,2]
[344036594,1733238639403,-250.0,8.219e-05,2]
[344036596,1733238639413,-24105.75,8.219e-05,2]
[344036599,1733238639422,-1000.0,8.219e-05,2]
[344036604,1733238639432,-300.0,8.219e-05,2]
[344036605,1733238639565,-483.6,8.219e-05,2]
[344036606,1733238639575,-8903.86,8.219e-05,2]
[344036607,1733238639585,-61567.07,8.219e-05,2]
[344036608,1733238639594,-685.27880945,8.221e-05,2]
[344036609,1733238639604,-25000.0,8.3e-05,2]
[344036611,1733238639614,-166.66,8.318e-05,2]
[344036614,1733238639627,-420.41142783,8.346e-05,2]
[344036616,1733238639637,-1055.0,8.396e-05,2]
[344036619,1733238639647,-25000.0,8.4e-05,2]
[344036621,1733238639657,-500.0,8.493e-05,2]
[344036623,1733238639667,-150.0,8.493e-05,2]
[344036625,1733238639677,-258.89440586,8.493e-05,2]
[344036626,1733238639686,-500.0,8.493e-05,2]
[344036627,1733238639696,-500.0,8.493e-05,2]
[344036628,1733238639706,-500.0,8.493e-05,2]
[344036629,1733238639715,-2076.0,8.493e-05,2]
[344036630,1733238639725,-500.0,8.493e-05,2]
[344036631,1733238639735,-2538.84,8.5e-05,2]
[344036632,1733238639745,-414.35,8.512e-05,2]
[344036633,1733238639755,-420.41142783,8.518e-05,2]
[344036634,1733238639764,-483.6,8.63e-05,2]
[344036635,1733238639774,-1001.54,8.676e-05,2]
[344036636,1733238639783,-185.87,8.685e-05,2]
[344036637,1733238639793,-500.0,8.767e-05,2]
[344036638,1733238639803,-167.99694361,8.767e-05,2]
[344036639,1733238639812,-931.03837363,8.767e-05,2]
[344036640,1733238639821,-500.0,8.767e-05,2]
[344036641,1733238639831,-500.0,8.767e-05,2]
[344036642,1733238639841,-2076.0,8.767e-05,2]
[344036643,1733238639851,-500.0,8.767e-05,2]
[344036644,1733238639860,-420.41142783,8.772e-05,2]
[344036645,1733238639870,-1055.0,8.838e-05,2]
[344036646,1733238639883,-227.32344439,8.849e-05,2]
[344036647,1733238639892,-32235.15548409,8.85e-05,2]
[344036648,1733238639902,-433.0,8.953e-05,2]
[344036649,1733238639912,-727.62,8.993e-05,2]
[344036650,1733238639921,-10073.1590492,9e-05,2]
[344036651,1733238639930,-66705.51441107,9e-05,2]
[344036652,1733238639940,-28000.0,9e-05,2]
[344036653,1733238639949,-369791.8907789,9e-05,2]
[344036654,1733238639959,-4494.46253174,9e-05,2]
[344036655,1733238639968,-158921.21323698,9e-05,2]
[344036656,1733238639978,-70411.89417234,9e-05,2]
[344036657,1733238639987,-500.0,9.041e-05,2]
[344036658,1733238639997,-500.0,9.041e-05,2]
[344036659,1733238640006,-500.0,9.041e-05,2]
[344036660,1733238640015,-2076.0,9.041e-05,2]
[344036661,1733238640025,-500.0,9.041e-05,2]
[344036662,1733238640034,-483.6,9.041e-05,2]
[344036663,1733238640043,-1001.54,9.132e-05,2]
[344036664,1733238640053,-420.41142783,9.226e-05,2]
[344036665,1733238640062,-1000.0,9.247e-05,2]
[344036666,1733238640071,-1055.0,9.303e-05,2]
[344036667,1733238640080,-204.707366,9.31e-05,2]
[344036668,1733238640089,-500.0,9.315e-05,2]
[344036669,1733238640098,-500.0,9.315e-05,2]
[344036670,1733238640107,-500.0,9.315e-05,2]
[344036671,1733238640116,-2076.0,9.315e-05,2]
[344036672,1733238640127,-500.0,9.315e-05,2]
[344036673,1733238640136,-414.35,9.363e-05,2]
[344036674,1733238640145,-483.6,9.452e-05,2]
[344036675,1733238640154,-185.87,9.554e-05,2]
[344036677,1733238640163,-420.41142783,9.568e-05,2]
[344036678,1733238640172,-500.0,9.589e-05,2]
[344036679,1733238640181,-500.0,9.589e-05,2]
[344036680,1733238640190,-500.0,9.589e-05,2]
[344036681,1733238640199,-2076.0,9.589e-05,2]
[344036682,1733238640208,-500.0,9.589e-05,2]
[344036683,1733238640217,-1001.54,9.589e-05,2]
[344036684,1733238640227,-9999.99,9.67e-05,2]
[344036685,1733238640237,-9999.99,9.67e-05,2]
[344036686,1733238640246,-1343.72,9.67e-05,2]
[344036687,1733238640255,-13114.86,9.67e-05,2]
[344036688,1733238640265,-150.99,9.67e-05,2]
[344036689,1733238640275,-155204.07,9.67e-05,2]
[344036690,1733238640284,-189.99,9.67e-05,2]
[344036691,1733238640293,-16739.96,9.67e-05,2]
[344036692,1733238640302,-391.18,9.67e-05,2]
[344036693,1733238640311,-3579.29,9.67e-05,2]
[344036694,1733238640322,-1505.83,9.67e-05,2]
[344036695,1733238640331,-326.61,9.67e-05,2]
[344036696,1733238640340,-999.99,9.67e-05,2]
[344036697,1733238640350,-1373.24,9.67e-05,2]
[344036698,1733238640359,-1106.68,9.67e-05,2]
[344036699,1733238640368,-1516.82,9.67e-05,2]
[344036700,1733238640381,-8654.16,9.67e-05,2]
[344036701,1733238640393,-6518.79,9.67e-05,2]
[344036702,1733238640403,-51760.35,9.67e-05,2]
[344036703,1733238640416,-150.99,9.67e-05,2]
[344036704,1733238640425,-805.79,9.67e-05,2]
[344036705,1733238640434,-299.99,9.67e-05,2]
[344036706,1733238640443,-9999.99,9.67e-05,2]
[344036707,1733238640454,-499.99,9.67e-05,2]
[344036708,1733238640463,-2858.47,9.67e-05,2]
[344036709,1733238640472,-1436.62,9.67e-05,2]
[344036710,1733238640481,-420.41142783,9.673e-05,2]
[344036711,1733238640490,-199.0,9.7e-05,2]
[344036712,1733238640500,-200.67,9.7e-05,2]
[344036713,1733238640510,-1055.0,9.793e-05,2]
[344036714,1733238640521,-22549.87515518,9.8e-05,2]
[344036715,1733238640531,-205.0,9.8e-05,2]
[344036716,1733238640540,-69993.92625291,9.8e-05,2]
[344036717,1733238640549,-1775.45467535,9.8e-05,2]
[344036718,1733238640559,-727.62,9.81e-05,2]
[344036719,1733238640569,-736.0,9.848e-05,2]
[344036720,1733238640579,-500.0,9.863e-05,2]
[344036721,1733238640589,-500.0,9.863e-05,2]
[344036722,1733238640599,-500.0,9.863e-05,2]
[344036723,1733238640610,-2076.0,9.863e-05,2]
[344036724,1733238640619,-589.35527394,9.863e-05,2]
[344036725,1733238640631,-2000.0,9.863e-05,2]
[344036726,1733238640640,-1600.0,9.863e-05,2]
[344036727,1733238640649,-483.6,9.863e-05,2]
[344036728,1733238640659,-735.42,9.869e-05,2]
[344036729,1733238640668,-14001.34086587,9.9e-05,2]
[344036730,1733238640678,-1188.0,9.9e-05,3]
[344036731,1733238640687,-10470.53632021,9.99e-05,2]
[344036732,1733238640697,-139865.8134564,9.99e-05,2]
[344036733,1733238640706,-139865.8134564,9.99e-05,2]
[344036734,1733238640715,-139865.8134564,9.99e-05,2]
[344036735,1733238640724,-139865.8134564,9.99e-05,2]
[344036736,1733238640733,-139865.8134564,9.99e-05,2]